fUSD/lending_fUSD_20250217
["ID","MTS","AMOUNT","RATE_DAILY","PERIOD"]
[353340179,1739782270268,-500.0,0.00014027,2]
[353340180,1739782270277,-1812.07,0.00014027,2]
[353340181,1739782270287,-520.4,0.00014027,2]
[353340182,1739782270296,-819.14,0.00014027,2]
[353340183,1739782270308,-1274.62,0.00014027,2]
[353340184,1739782270318,-4372.56,0.00014027,2]
[353340185,1739782270327,-500.0,0.00014027,2]
[353340186,1739782270337,-500.0,0.00014027,2]
[353340187,1739782270346,-500.0,0.00014027,2]
[353340188,1739782270356,-500.0,0.00014027,2]
[353340189,1739782270365,-538.08,0.00014027,2]
[353340190,1739782270374,-1324.0,0.00014027,2]
[353340191,1739782270383,-901.12,0.00014027,2]
[353340192,1739782270392,-500.0,0.00014027,2]
[353340193,1739782270405,-1422.17,0.00014027,2]
[353340194,1739782270414,-817.6,0.00014027,2]
[353340195,1739782270424,-1334.19,0.00014027,2]
[353340196,1739782270433,-500.0,0.00014027,2]
[353340197,1739782270443,-2256.34,0.00014027,2]
[353340198,1739782270452,-500.0,0.00014027,2]
[353340199,1739782270461,-771.38,0.00014027,2]
[353340200,1739782270470,-500.0,0.00014027,2]
[353340201,1739782270479,-735.66,0.00014027,2]
[353340202,1739782270491,-2032.65,0.00014027,2]
[353340203,1739782270500,-749.45,0.00014027,2]
[353340204,1739782270510,-1125.52,0.00014027,2]
[353340205,1739782270519,-772.0,0.00014027,2]
[353340206,1739782270528,-739.22,0.00014027,2]
[353340207,1739782270537,-500.0,0.00014027,2]
[353340208,1739782270546,-1069.07,0.00014027,2]
[353340209,1739782270557,-546.19,0.00014027,2]
[353340210,1739782270566,-1494.23,0.00014027,2]
[353340211,1739782270575,-864.83,0.00014027,2]
[353340212,1739782270584,-558.97347483,0.00014027,2]
[353340213,1739782270594,-500.0,0.00014027,2]
[353340214,1739782270603,-935.35,0.00014027,2]
[353340215,1739782270612,-615.69,0.00014027,2]
[353340216,1739782270622,-677.77,0.00014027,2]
[353340217,1739782270631,-500.0,0.00014027,2]
[353340218,1739782270641,-707.08,0.00014027,2]
[353340219,1739782270650,-1876.33,0.00014027,2]
[353340220,1739782270659,-2554.16,0.00014027,2]
[353340221,1739782270668,-1026.29,0.00014027,2]
[353340222,1739782270677,-1043.92,0.00014027,2]
[353340223,1739782270686,-500.0,0.00014027,2]
[353340224,1739782270695,-500.0,0.00014027,2]
[353340225,1739782270704,-500.0,0.00014027,2]
[353340226,1739782270716,-500.0,0.00014027,2]
[353340227,1739782270725,-1889.27,0.00014027,2]
[353340228,1739782270735,-500.0,0.00014027,2]
[353340229,1739782270743,-500.0,0.00014027,2]
[353340230,1739782270753,-875.92,0.00014027,2]
[353340231,1739782270762,-1579.86,0.00014027,2]
[353340232,1739782270771,-500.0,0.00014027,2]
[353340233,1739782270780,-500.0,0.00014027,2]
[353340234,1739782270789,-500.0,0.00014027,2]
[353340235,1739782270798,-1021.86,0.00014027,2]
[353340236,1739782270809,-2430.21,0.00014027,2]
[353340237,1739782270818,-1775.26,0.00014027,2]
[353340238,1739782270828,-1126.39,0.00014027,2]
[353340239,1739782270837,-500.0,0.00014027,2]
[353340240,1739782270847,-500.0,0.00014027,2]
[353340241,1739782270856,-1246.28,0.00014027,2]
[353340242,1739782270865,-1440.41,0.00014027,2]
[353340243,1739782270874,-1157.83,0.00014027,2]
[353340244,1739782270884,-500.0,0.00014027,2]
[353340245,1739782270893,-579.64,0.00014027,2]
[353340246,1739782270902,-500.0,0.00014027,2]
[353340247,1739782270912,-736.98,0.00014027,2]
[353340248,1739782271040,-602.96,0.00014027,2]
[353340249,1739782271050,-1734.6,0.00014027,2]
[353340250,1739782271060,-662.81,0.00014027,2]
[353340251,1739782271070,-996.06,0.00014027,2]
[353340252,1739782271080,-500.0,0.00014027,2]
[353340253,1739782271089,-1538.42,0.00014027,2]
[353340254,1739782271099,-1344.96,0.00014027,2]
[353340255,1739782271108,-500.0,0.00014027,2]
[353340256,1739782271117,-1060.38,0.00014027,2]
[353340257,1739782271126,-1225.17,0.00014027,2]
[353340258,1739782271135,-500.0,0.00014027,2]
[353340259,1739782271144,-500.0,0.00014027,2]
[353340260,1739782271154,-500.0,0.00014027,2]
[353340261,1739782271163,-500.0,0.00014027,2]
[353340262,1739782271173,-1000.0,0.00014027,2]
[353340263,1739782271183,-879.19,0.00014027,2]
[353340264,1739782271192,-627.0,0.00014027,2]
[353340265,1739782271201,-500.0,0.00014027,2]
[353340266,1739782271211,-5333.3,0.00014027,2]
[353340267,1739782271220,-500.0,0.00014027,2]
[353340268,1739782271228,-1241.74,0.00014027,2]
[353340269,1739782271239,-500.0,0.00014027,2]
[353340270,1739782271248,-1771.28,0.00014027,2]
[353340271,1739782271258,-885.43,0.00014027,2]
[353340272,1739782271266,-1586.54,0.00014027,2]
[353340273,1739782271275,-1307.73,0.00014027,2]
[353340274,1739782271284,-756.31,0.00014027,2]
[353340275,1739782271293,-500.0,0.00014027,2]
[353340276,1739782271304,-500.0,0.00014027,2]
[353340277,1739782271312,-917.32,0.00014027,2]
[353340278,1739782271322,-707.23,0.00014027,2]
[353340279,1739782271332,-500.0,0.00014027,2]
[353340280,1739782271341,-2401.78,0.00014027,2]
[353340281,1739782271350,-1455.33,0.00014027,2]
[353340282,1739782271359,-1605.77,0.00014027,2]
[353340283,1739782271368,-500.0,0.00014027,2]
[353340284,1739782271377,-1089.15,0.00014027,2]
[353340285,1739782271386,-1269.98,0.00014027,2]
[353340286,1739782271395,-500.0,0.00014027,2]
[353340287,1739782271405,-998.9,0.00014027,2]
[353340288,1739782271418,-1551.79,0.00014027,2]
[353340289,1739782271428,-500.0,0.00014027,2]
[353340290,1739782271438,-1847.02,0.00014027,2]
[353340291,1739782271447,-586.8,0.00014027,2]
[353340292,1739782271457,-500.0,0.00014027,2]
[353340293,1739782271467,-500.0,0.00014027,2]
[353340294,1739782271476,-1701.27,0.00014027,2]
[353340295,1739782271486,-600.56,0.00014027,2]
[353340296,1739782271496,-500.0,0.00014027,2]
[353340297,1739782271507,-886.89,0.00014027,2]
[353340298,1739782271516,-1445.61,0.00014027,2]
[353340299,1739782271525,-1575.03,0.00014027,2]
[353340300,1739782271534,-500.0,0.00014027,2]
[353340301,1739782271543,-1677.19,0.00014027,2]
[353340302,1739782271554,-1797.4,0.00014027,2]
[353340303,1739782271563,-500.0,0.00014027,2]
[353340304,1739782271572,-922.01,0.00014027,2]
[353340305,1739782271581,-500.0,0.00014027,2]
[353340306,1739782271591,-1271.08,0.00014027,2]
[353340307,1739782271600,-1813.57,0.00014027,2]
[353340308,1739782271609,-1220.73,0.00014027,2]
[353340309,1739782271619,-500.0,0.00014027,2]
[353340310,1739782271629,-500.0,0.00014027,2]
[353340311,1739782271638,-500.0,0.00014027,2]
[353340312,1739782271647,-1728.58,0.00014027,2]
[353340313,1739782271656,-4549.55,0.00014027,2]
[353340314,1739782271665,-824.72,0.00014027,2]
[353340315,1739782271674,-500.0,0.00014027,2]
[353340316,1739782271683,-1386.78,0.00014027,2]
[353340317,1739782271693,-2188.82,0.00014027,2]
[353340318,1739782271702,-500.0,0.00014027,2]
[353340319,1739782271711,-500.0,0.00014027,2]
[353340320,1739782271721,-500.0,0.00014027,2]
[353340321,1739782271730,-571.8,0.00014027,2]
[353340322,1739782271741,-500.0,0.00014027,2]
[353340323,1739782271751,-988.86,0.00014027,2]
[353340324,1739782271760,-500.0,0.00014027,2]
[353340325,1739782271769,-1847.84,0.00014027,2]
[353340326,1739782271777,-1440.2,0.00014027,2]
[353340327,1739782271787,-1053.02,0.00014027,2]
[353340328,1739782271796,-1037.56,0.00014027,2]
[353340329,1739782271807,-557.11,0.00014027,2]
[353340330,1739782271816,-500.0,0.00014027,2]
[353340331,1739782271826,-500.0,0.00014027,2]
[353340332,1739782271835,-802.9,0.00014027,2]
[353340333,1739782271845,-500.0,0.00014027,2]
[353340334,1739782271854,-2029.25,0.00014027,2]
[353340335,1739782271863,-683.14,0.00014027,2]
[353340336,1739782271873,-562.58,0.00014027,2]
[353340337,1739782271882,-1363.24,0.00014027,2]
[353340338,1739782271891,-500.0,0.00014027,2]
[353340339,1739782271900,-664.98,0.00014027,2]
[353340340,1739782271909,-500.0,0.00014027,2]
[353340341,1739782271918,-500.0,0.00014027,2]
[353340342,1739782271927,-1710.06,0.00014027,2]
[353340343,1739782271936,-649.3,0.00014027,2]
[353340344,1739782271945,-1213.04,0.00014027,2]
[353340345,1739782271955,-2532.35,0.00014027,2]
[353340346,1739782271964,-500.0,0.00014027,2]
[353340347,1739782271973,-538.6,0.00014027,2]
[353340348,1739782271982,-500.0,0.00014027,2]
[353340349,1739782271991,-702.88,0.00014027,2]
[353340350,1739782272000,-500.0,0.00014027,2]
[353340351,1739782272009,-1331.97,0.00014027,2]
[353340352,1739782272018,-900.35,0.00014027,2]
[353340353,1739782272027,-606.3,0.00014027,2]
[353340354,1739782272037,-500.0,0.00014027,2]
[353340355,1739782272046,-500.0,0.00014027,2]
[353340356,1739782272057,-500.0,0.00014027,2]
[353340357,1739782272066,-1040.4,0.00014027,2]
[353340358,1739782272075,-1450.57,0.00014027,2]
[353340359,1739782272084,-500.0,0.00014027,2]
[353340360,1739782272094,-1277.8,0.00014027,2]
[353340361,1739782272103,-500.0,0.00014027,2]
[353340362,1739782272113,-1045.42,0.00014027,2]
[353340363,1739782272123,-500.0,0.00014027,2]
[353340364,1739782272132,-500.0,0.00014027,2]
[353340365,1739782272143,-844.67,0.00014027,2]
[353340366,1739782272152,-1239.77,0.00014027,2]
[353340367,1739782272161,-1330.04,0.00014027,2]
[353340368,1739782272170,-630.19052912,0.00014027,2]
[353340369,1739782272180,-545.47,0.00014027,2]
[353340370,1739782272189,-500.0,0.00014027,2]
[353340371,1739782272198,-753.37,0.00014027,2]
[353340372,1739782272208,-1295.43,0.00014027,2]
[353340373,1739782272217,-500.0,0.00014027,2]
[353340374,1739782272226,-500.0,0.00014027,2]
[353340375,1739782272235,-538.43,0.00014027,2]
[353340376,1739782272244,-500.0,0.00014027,2]
[353340377,1739782272254,-1569.09,0.00014027,2]
[353340378,1739782272264,-775.82,0.00014027,2]
[353340379,1739782272273,-440.13,0.00014027,2]
[353340380,1739782272282,-440.13,0.00014027,2]
[353340381,1739782272291,-775.82,0.00014027,2]
[353340382,1739782272299,-440.13,0.00014027,2]
[353340383,1739782272310,-775.82,0.00014027,2]
[353340384,1739782272319,-775.26,0.00014027,2]
[353340385,1739782272328,-440.13,0.00014027,2]
[353340386,1739782272338,-428.01,0.00014027,2]
[353340387,1739782272347,-225.0,0.000141,2]
[353340388,1739782272356,-163.607122,0.00014109,2]
[353340389,1739782272365,-808.574074,0.00014109,2]
[353340390,1739782272374,-156.081308,0.00014109,2]
[353340391,1739782272383,-655.639204,0.00014109,2]
[353340392,1739782272392,-500.0,0.00014109,2]
[353340393,1739782272401,-500.0,0.00014109,2]
[353340394,1739782272411,-500.0,0.00014109,2]
[353340395,1739782272422,-500.0,0.00014109,2]
[353340396,1739782272431,-500.0,0.00014109,2]
[353340397,1739782272441,-500.0,0.00014109,2]
[353340398,1739782272451,-500.0,0.00014109,2]
[353340399,1739782272459,-500.0,0.00014109,2]
[353340400,1739782272468,-500.0,0.00014109,2]
[353340401,1739782272477,-500.0,0.00014109,2]
[353340402,1739782272486,-500.0,0.00014109,2]
[353340403,1739782272495,-500.0,0.00014109,2]
[353340404,1739782272504,-500.0,0.00014109,2]
[353340405,1739782272514,-500.0,0.00014109,2]
[353340406,1739782272523,-500.0,0.00014109,2]
[353340407,1739782272531,-500.0,0.00014109,2]
[353340408,1739782272541,-500.0,0.00014109,2]
[353340409,1739782272550,-500.0,0.00014109,2]
[353340410,1739782272560,-500.0,0.00014109,2]
[353340411,1739782272569,-500.0,0.00014109,2]
[353340412,1739782272579,-500.0,0.00014109,2]
[353340413,1739782272587,-500.0,0.00014109,2]
[353340414,1739782272596,-500.0,0.00014109,2]
[353340415,1739782272605,-500.0,0.00014109,2]
[353340416,1739782272613,-500.0,0.00014109,2]
[353340417,1739782272622,-500.0,0.00014109,2]
[353340418,1739782272631,-349.36669806,0.00014109,2]
[353340419,1739782272640,-604.74,0.00014109,2]
[353340420,1739782272649,-500.0,0.00014109,2]
[353340421,1739782272657,-500.0,0.00014109,2]
[353340422,1739782272666,-500.0,0.00014109,2]
[353340423,1739782272675,-575.7,0.00014109,2]
[353340424,1739782272684,-907.72,0.00014109,2]
[353340425,1739782272693,-500.0,0.00014109,2]
[353340426,1739782272701,-500.0,0.00014109,2]
[353340427,1739782272712,-732.02,0.00014109,2]
[353340428,1739782272721,-562.63,0.00014109,2]
[353340429,1739782272729,-500.0,0.00014109,2]
[353340430,1739782272738,-500.0,0.00014109,2]
[353340431,1739782272747,-951.64,0.00014109,2]
[353340432,1739782272756,-500.0,0.00014109,2]
[353340433,1739782272764,-633.77,0.00014109,2]
[353340434,1739782272774,-664.66,0.00014109,2]
[353340435,1739782272782,-500.0,0.00014109,2]
[353340436,1739782272791,-500.0,0.00014109,2]
[353340437,1739782272800,-722.21,0.00014109,2]
[353340438,1739782272811,-500.0,0.00014109,2]
[353340439,1739782272820,-592.21,0.00014109,2]
[353340440,1739782272829,-500.0,0.00014109,2]
[353340441,1739782272839,-500.0,0.00014109,2]
[353340442,1739782272848,-500.0,0.00014109,2]
[353340443,1739782272857,-507.13,0.00014109,2]
[353340444,1739782272867,-500.0,0.00014109,2]
[353340445,1739782272876,-995.97,0.00014109,2]
[353340446,1739782272885,-536.86,0.00014109,2]
[353340447,1739782272893,-566.9,0.00014109,2]
[353340448,1739782272902,-500.0,0.00014109,2]
[353340449,1739782272911,-500.0,0.00014109,2]
[353340450,1739782272920,-500.0,0.00014109,2]
[353340451,1739782272929,-500.0,0.00014109,2]
[353340452,1739782272938,-500.0,0.00014109,2]
[353340453,1739782272947,-500.0,0.00014109,2]
[353340454,1739782272956,-500.0,0.00014109,2]
[353340455,1739782272965,-500.0,0.00014109,2]
[353340456,1739782272974,-500.0,0.00014109,2]
[353340457,1739782272984,-500.0,0.00014109,2]
[353340458,1739782272993,-500.0,0.00014109,2]
[353340459,1739782273003,-500.0,0.00014109,2]
[353340460,1739782273012,-500.0,0.00014109,2]
[353340461,1739782273022,-738.44,0.00014109,2]
[353340462,1739782273031,-500.0,0.00014109,2]
[353340463,1739782273041,-580.16,0.00014109,2]
[353340464,1739782273050,-500.0,0.00014109,2]
[353340465,1739782273061,-619.49,0.00014109,2]
[353340466,1739782273071,-560.76,0.00014109,2]
[353340467,1739782273080,-500.0,0.00014109,2]
[353340468,1739782273090,-500.0,0.00014109,2]
[353340469,1739782273099,-500.0,0.00014109,2]
[353340470,1739782273108,-1077.47,0.00014109,2]
[353340471,1739782273118,-536.91,0.00014109,2]
[353340472,1739782273127,-500.0,0.00014109,2]
[353340473,1739782273136,-500.0,0.00014109,2]
[353340474,1739782273146,-558.82,0.00014109,2]
[353340475,1739782273155,-500.0,0.00014109,2]
[353340476,1739782273166,-850.62,0.00014109,2]
[353340477,1739782273176,-500.0,0.00014109,2]
[353340478,1739782273185,-708.1,0.00014109,2]
[353340479,1739782273195,-500.0,0.00014109,2]
[353340480,1739782273204,-641.57,0.00014109,2]
[353340481,1739782273214,-528.32,0.00014109,2]
[353340482,1739782273223,-500.0,0.00014109,2]
[353340483,1739782273233,-684.2,0.00014109,2]
[353340484,1739782273244,-890.46,0.00014109,2]
[353340485,1739782273254,-612.05,0.00014109,2]
[353340486,1739782273264,-500.0,0.00014109,2]
[353340487,1739782273273,-568.28,0.00014109,2]
[353340488,1739782273287,-500.0,0.00014109,2]
[353340489,1739782273297,-537.33,0.00014109,2]
[353340490,1739782273308,-743.6,0.00014109,2]
[353340491,1739782273318,-647.11,0.00014109,2]
[353340492,1739782273327,-559.89,0.00014109,2]
[353340493,1739782273337,-649.94,0.00014109,2]
[353340494,1739782273346,-783.7,0.00014109,2]
[353340495,1739782273355,-500.0,0.00014109,2]
[353340496,1739782273364,-500.0,0.00014109,2]
[353340497,1739782273373,-500.0,0.00014109,2]
[353340498,1739782273383,-500.0,0.00014109,2]
[353340499,1739782273393,-500.0,0.00014109,2]
[353340500,1739782273405,-500.0,0.00014109,2]
[353340501,1739782273418,-560.76,0.00014109,2]
[353340502,1739782273427,-950.17,0.00014109,2]
[353340503,1739782273437,-500.0,0.00014109,2]
[353340504,1739782273447,-593.13,0.00014109,2]
[353340505,1739782273457,-561.01,0.00014109,2]
[353340506,1739782273466,-500.0,0.00014109,2]
[353340507,1739782273476,-500.0,0.00014109,2]
[353340508,1739782273485,-500.0,0.00014109,2]
[353340509,1739782273495,-500.0,0.00014109,2]
[353340510,1739782273505,-500.0,0.00014109,2]
[353340511,1739782273515,-500.0,0.00014109,2]
[353340512,1739782273525,-500.0,0.00014109,2]
[353340513,1739782273535,-500.0,0.00014109,2]
[353340514,1739782273544,-622.63,0.00014109,2]
[353340515,1739782273553,-500.0,0.00014109,2]
[353340516,1739782273565,-500.0,0.00014109,2]
[353340517,1739782273575,-508.41,0.00014109,2]
[353340518,1739782273586,-426.48215263,0.00014109,2]
[353340519,1739782273595,-500.0,0.00014109,2]
[353340520,1739782273604,-500.0,0.00014109,2]
[353340521,1739782273614,-500.0,0.00014109,2]
[353340522,1739782273624,-716.43,0.00014109,2]
[353340523,1739782273633,-530.22,0.00014109,2]
[353340524,1739782273643,-643.28573096,0.00014109,2]
[353340525,1739782273652,-733.96,0.00014109,2]
[353340526,1739782273662,-500.0,0.00014109,2]
[353340527,1739782273672,-500.0,0.00014109,2]
[353340528,1739782273682,-500.0,0.00014109,2]
[353340529,1739782273691,-500.0,0.00014109,2]
[353340530,1739782273701,-673.88,0.00014109,2]
[353340531,1739782273710,-500.0,0.00014109,2]
[353340532,1739782273719,-511.13,0.00014109,2]
[353340533,1739782273729,-500.0,0.00014109,2]
[353340534,1739782273738,-559.67,0.00014109,2]
[353340535,1739782273748,-500.0,0.00014109,2]
[353340536,1739782273758,-778.97,0.00014109,2]
[353340537,1739782273768,-500.0,0.00014109,2]
[353340538,1739782273777,-500.0,0.00014109,2]
[353340539,1739782273787,-500.0,0.00014109,2]
[353340540,1739782273797,-500.0,0.00014109,2]
[353340541,1739782273807,-500.0,0.00014109,2]
[353340542,1739782273816,-500.0,0.00014109,2]
[353340543,1739782273827,-500.0,0.00014109,2]
[353340544,1739782273836,-1031.51,0.00014109,2]
[353340545,1739782273845,-500.0,0.00014109,2]
[353340546,1739782273855,-662.08,0.00014109,2]
[353340547,1739782273865,-500.0,0.00014109,2]
[353340548,1739782273876,-500.0,0.00014109,2]
[353340549,1739782273885,-766.22,0.00014109,2]
[353340550,1739782273895,-500.0,0.00014109,2]
[353340551,1739782273904,-500.0,0.00014109,2]
[353340552,1739782273914,-500.0,0.00014109,2]
[353340553,1739782273924,-500.0,0.00014109,2]
[353340554,1739782273933,-500.0,0.00014109,2]
[353340555,1739782273943,-500.0,0.00014109,2]
[353340556,1739782273953,-572.19,0.00014109,2]
[353340557,1739782273963,-500.0,0.00014109,2]
[353340558,1739782273973,-500.0,0.00014109,2]
[353340559,1739782273983,-500.0,0.00014109,2]
[353340560,1739782273992,-817.69,0.00014109,2]
[353340561,1739782274002,-500.0,0.00014109,2]
[353340562,1739782274012,-500.0,0.00014109,2]
[353340563,1739782274023,-519.96,0.00014109,2]
[353340564,1739782274032,-500.0,0.00014109,2]
[353340565,1739782274042,-522.84,0.00014109,2]
[353340566,1739782274052,-500.0,0.00014109,2]
[353340567,1739782274064,-500.0,0.00014109,2]
[353340568,1739782274074,-500.0,0.00014109,2]
[353340569,1739782274083,-500.0,0.00014109,2]
[353340570,1739782274093,-500.0,0.00014109,2]
[353340571,1739782274102,-614.77,0.00014109,2]
[353340572,1739782274111,-2827.32,0.00014109,2]
[353340573,1739782274121,-500.0,0.00014109,2]
[353340574,1739782274130,-1812.07,0.00014109,2]
[353340575,1739782274139,-520.4,0.00014109,2]
[353340576,1739782274294,-819.14,0.00014109,2]
[353340577,1739782274307,-1274.62,0.00014109,2]
[353340578,1739782274317,-4372.56,0.00014109,2]
[353340579,1739782274326,-173.05528526,0.00014109,2]
[353340580,1739782274336,-500.0,0.00014109,2]
[353340581,1739782274345,-500.0,0.00014109,2]
[353340582,1739782274355,-500.0,0.00014109,2]
[353340583,1739782274364,-538.08,0.00014109,2]
[353340584,1739782274373,-1324.0,0.00014109,2]
[353340585,1739782274382,-901.12,0.00014109,2]
[353340586,1739782274392,-500.0,0.00014109,2]
[353340587,1739782274402,-1422.17,0.00014109,2]
[353340588,1739782274414,-1334.19,0.00014109,2]
[353340589,1739782274424,-817.6,0.00014109,2]
[353340590,1739782274435,-341.86940611,0.00014109,2]
[353340591,1739782274446,-2256.34,0.00014109,2]
[353340592,1739782274456,-604.8,0.00014109,2]
[353340593,1739782274466,-771.38,0.00014109,2]
[353340594,1739782274476,-500.0,0.00014109,2]
[353340595,1739782274487,-735.66,0.00014109,2]
[353340596,1739782274497,-2032.65,0.00014109,2]
[353340597,1739782274507,-749.45,0.00014109,2]
[353340598,1739782274517,-1125.52,0.00014109,2]
[353340599,1739782274526,-772.0,0.00014109,2]
[353340600,1739782274535,-739.22,0.00014109,2]
[353340601,1739782274545,-500.0,0.00014109,2]
[353340602,1739782274555,-546.19,0.00014109,2]
[353340603,1739782274566,-1069.07,0.00014109,2]
[353340604,1739782274575,-1494.23,0.00014109,2]
[353340605,1739782274585,-864.83,0.00014109,2]
[353340606,1739782274594,-500.0,0.00014109,2]
[353340607,1739782274604,-935.35,0.00014109,2]
[353340608,1739782274614,-615.69,0.00014109,2]
[353340609,1739782274624,-677.77,0.00014109,2]
[353340610,1739782274633,-500.0,0.00014109,2]
[353340611,1739782274643,-707.08,0.00014109,2]
[353340612,1739782274652,-1876.33,0.00014109,2]
[353340613,1739782274662,-2554.16,0.00014109,2]
[353340614,1739782274671,-1026.29,0.00014109,2]
[353340615,1739782274681,-1043.92,0.00014109,2]
[353340616,1739782274690,-500.0,0.00014109,2]
[353340617,1739782274699,-525.75777385,0.00014109,2]
[353340618,1739782274709,-500.0,0.00014109,2]
[353340619,1739782274719,-500.0,0.00014109,2]
[353340620,1739782274731,-1889.27,0.00014109,2]
[353340621,1739782274741,-500.0,0.00014109,2]
[353340622,1739782274750,-500.0,0.00014109,2]
[353340623,1739782274759,-875.92,0.00014109,2]
[353340624,1739782274768,-1579.86,0.00014109,2]
[353340625,1739782274777,-500.0,0.00014109,2]
[353340626,1739782274786,-500.0,0.00014109,2]
[353340627,1739782274796,-500.0,0.00014109,2]
[353340628,1739782274805,-1021.86,0.00014109,2]
[353340629,1739782274815,-2430.21,0.00014109,2]
[353340630,1739782274824,-1775.26,0.00014109,2]
[353340631,1739782274833,-1126.39,0.00014109,2]
[353340632,1739782274844,-500.0,0.00014109,2]
[353340633,1739782274854,-500.0,0.00014109,2]
[353340634,1739782274863,-1246.28,0.00014109,2]
[353340635,1739782274872,-1440.41,0.00014109,2]
[353340636,1739782274882,-1157.83,0.00014109,2]
[353340637,1739782274892,-500.0,0.00014109,2]
[353340638,1739782274901,-579.64,0.00014109,2]
[353340639,1739782274911,-500.0,0.00014109,2]
[353340640,1739782274920,-736.98,0.00014109,2]
[353340641,1739782274931,-602.96,0.00014109,2]
[353340642,1739782274941,-662.81,0.00014109,2]
[353340643,1739782274951,-1734.6,0.00014109,2]
[353340644,1739782274961,-996.06,0.00014109,2]
[353340645,1739782274970,-500.0,0.00014109,2]
[353340646,1739782274980,-1538.42,0.00014109,2]
[353340647,1739782274989,-1344.96,0.00014109,2]
[353340648,1739782274999,-500.0,0.00014109,2]
[353340649,1739782275010,-1060.38,0.00014109,2]
[353340650,1739782275020,-1225.17,0.00014109,2]
[353340651,1739782275030,-500.0,0.00014109,2]
[353340652,1739782275039,-432.65208012,0.00014109,2]
[353340653,1739782275048,-516.27018073,0.00014109,2]
[353340654,1739782275058,-500.0,0.00014109,2]
[353340655,1739782275068,-1000.0,0.00014109,2]
[353340656,1739782275078,-879.19,0.00014109,2]
[353340657,1739782275088,-627.0,0.00014109,2]
[353340658,1739782275099,-500.0,0.00014109,2]
[353340659,1739782275108,-5333.3,0.00014109,2]
[353340660,1739782275117,-500.0,0.00014109,2]
[353340661,1739782275128,-1241.74,0.00014109,2]
[353340662,1739782275137,-500.0,0.00014109,2]
[353340663,1739782275147,-1771.28,0.00014109,2]
[353340664,1739782275156,-885.43,0.00014109,2]
[353340665,1739782275166,-1586.54,0.00014109,2]
[353340666,1739782275176,-1307.73,0.00014109,2]
[353340667,1739782275186,-756.31,0.00014109,2]
[353340668,1739782275197,-500.0,0.00014109,2]
[353340669,1739782275207,-500.0,0.00014109,2]
[353340670,1739782275217,-917.32,0.00014109,2]
[353340671,1739782275226,-707.23,0.00014109,2]
[353340672,1739782275238,-500.0,0.00014109,2]
[353340673,1739782275247,-2401.78,0.00014109,2]
[353340674,1739782275258,-1455.33,0.00014109,2]
[353340675,1739782275268,-1605.77,0.00014109,2]
[353340676,1739782275277,-500.0,0.00014109,2]
[353340677,1739782275287,-1089.15,0.00014109,2]
[353340678,1739782275296,-1269.98,0.00014109,2]